[Event "African Individual Chess-ch Women 2024"]
[Site "Accra"]
[Date "2024.03.20"]
[Round "9.7"]
[White "Marochkina, Nadezhda Valerevna"]
[Black "Vilhete, Vania Fausto Da T."]
[Result "0-1"]
[ECO "D51"]
[WhiteElo "1819"]
[BlackElo "1829"]
[Annotator "NA RC"]
[PlyCount "60"]
[EventDate "2024.03.13"]
[EventCountry "GHA"]
[SourceTitle "playchess.com"]
[Source "ChessBase"]
[SourceQuality "1"]
[TimeControl "5400+30"]

1. d4 {[%emt 0:00:03]} d5 {[%emt 0:00:10]} 2. c4 {[%emt 0:00:09]} e6 {[%emt 0:00:05]} 3. Nc3 {[%emt 0:00:16]} Nf6 {[%emt 0:00:24]} 4. Bg5 {[%emt 0:00:28]} Nbd7 {[%emt 0:02:29]} 5. Nf3 {[%emt 0:01:04]} h6 {[%emt 0:04:17]} 6. Bh4 {[%emt 0:00:36]} dxc4 {[%emt 0:01:01] D51: Queen's Gambit Declined: 4 Bg5 Nbd7 sidelines.} 7. e4 {[%emt 0:00:46]} Nb6 {[%emt 0:02:23]} 8. e5 {[%emt 0:06:11]} g5 {[%emt 0:00:23]} 9. Nxg5 {[%emt 0:00:48]} hxg5 {[%emt 0:00:20]} 10. Bxg5 {[%emt 0:00:05]} Be7 {[%emt 0:00:32]} 11. exf6 {[%emt 0:00:44]} Bxf6 {[%emt 0:00:12]} 12. Bxf6 {[%emt 0:00:20]} Qxf6 {[%emt 0:00:34]} 13. Bxc4 {[%emt 0:02:19]} a6 {[%emt 0:02:46]} 14. Be2 {[%emt 0:01:59]} Bd7 {[%emt 0:00:42]} 15. Ne4 {[%emt 0:09:50]} Qf4 {[%emt 0:07:20]} ({Besser ist} 15... Qg7 $1 $15 16. Qc2 O-O-O) 16. Bf3 {[%emt 0:14:23]} Bc6 {[%emt 0:00:50]} (16... Rxh2 $11 17. Nf6+ Ke7 18. Rxh2 Qxh2 19. Nxd7 Nxd7) 17. Qd2 {[%emt 0:04:19]} Qf5 {[%emt 0:00:59]} 18. Ng3 {[%emt 0:01:32]} Qb5 {[%emt 0:00:54]} 19. Bxc6+ {[%emt 0:03:28]} Qxc6 {[%emt 0:00:06]} 20. O-O {[%emt 0:01:39]} O-O-O {[%emt 0:00:15]} 21. Rac1 {[%emt 0:00:55]} Qd6 {[%emt 0:00:40]} 22. Qc3 {[%emt 0:01:22]} Qf4 {[%emt 0:04:56]} 23. Rfd1 {[%emt 0:04:10]} (23. Qe3 $11 {should be considered.} Qxd4 24. Qxd4 Rxd4 25. h3) 23... Nd5 {[%emt 0:03:04]} 24. Qe1 {[%emt 0:06:46]} Qh4 {[%emt 0:01:09]} 25. Nf1 {[%emt 0:03:03]} Rdg8 {[%emt 0:00:42]} 26. Qe5 {[%emt 0:11:46]} Rh5 {[%emt 0:07:12]} 27. Qe1 {[%emt 0:02:28]} Nf4 {[%emt 0:01:03]} 28. g3 {[%emt 0:01:13]} Qg4 {[%emt 0:08:01]} 29. f3 {[%emt 0:07:04]} Qxf3 {[%emt 0:01:09]} 30. Rc2 {[%emt 0:00:16]} Nh3# {[%emt 0:00:57]} 0-1